[Event "WSTCC-50 2024"]
[Site "Krakow"]
[Date "2024.07.07"]
[Round "6.20"]
[White "Noyce, Robert C"]
[Black "Serafim Junior, Arnor"]
[Result "1-0"]
[ECO "A16"]
[WhiteElo "2088"]
[BlackElo "1770"]
[Annotator "RC"]
[PlyCount "101"]
[EventDate "2024.07.01"]
[EventType "team-tourn"]
[EventCountry "POL"]
[SourceTitle "playchess.com"]
[Source "ChessBase"]
[SourceQuality "1"]
[TimeControl "40/5400+30:1800+30"]

1. c4 {[%emt 0:00:02]} Nf6 {[%emt 0:00:09]} 2. Nc3 {[%emt 0:00:09]} g6 {[%emt 0:00:11]} 3. e4 {[%emt 0:01:11]} d6 {[%emt 0:00:27]} 4. g3 {[%emt 0:00:39]} Bg7 {[%emt 0:00:09]} 5. Bg2 {[%emt 0:00:11]} O-O {[%emt 0:02:09]} 6. Nge2 {[%emt 0:00:20]} Nbd7 {[%emt 0:01:40]} 7. O-O {[%emt 0:00:53]} c6 {[%emt 0:01:04]} 8. h3 {[%emt 0:02:13]} Qc7 {[%emt 0:04:30]} 9. f4 {[%emt 0:03:58]} e5 {[%emt 0:01:34]} 10. f5 {[%emt 0:06:44]} a6 {[%emt 0:13:37]} 11. g4 {[%emt 0:01:06]} h6 {[%emt 0:01:08]} 12. d3 {[%emt 0:02:21]} b5 {[%emt 0:01:01]} 13. Be3 {[%emt 0:01:29]} Nb6 {[%emt 0:03:01]} 14. b3 {[%emt 0:01:49]} b4 {[%emt 0:07:31]} 15. Nb1 {[%emt 0:03:04]} Kh7 {[%emt 0:12:46]} 16. Qe1 {[%emt 0:09:48]} Rb8 {[%emt 0:14:17]} 17. Qxb4 {[%emt 0:08:49]} Nbd5 {[%emt 0:06:06]} 18. Qd2 {[%emt 0:01:39]} Nxe3 {[%emt 0:00:53]} 19. Qxe3 {[%emt 0:00:08]} Bb7 {[%emt 0:02:55]} 20. Nbc3 {[%emt 0:03:32]} Qd8 {[%emt 0:04:55]} 21. Rac1 {[%emt 0:05:13]} d5 {[%emt 0:03:51]} 22. exd5 {[%emt 0:04:09]} cxd5 {[%emt 0:00:08]} 23. Nxd5 {[%emt 0:12:58]} Nxd5 {[%emt 0:00:39]} 24. cxd5 {[%emt 0:01:44]} Bxd5 {[%emt 0:00:16]} 25. f6 {[%emt 0:03:48]} Bxf6 {[%emt 0:13:59]} 26. Bxd5 {[%emt 0:00:43]} Bg5 {[%emt 0:00:02]} 27. Qf3 {[%emt 0:02:15]} Bxc1 {[%emt 0:00:48]} 28. Rxc1 {[%emt 0:00:53]} f5 {[%emt 0:00:42]} 29. Bc4 {[%emt 0:03:16]} fxg4 {[%emt 0:00:31]} 30. Qxg4 {[%emt 0:01:19]} Qb6+ {[%emt 0:00:52]} 31. d4 {[%emt 0:01:24]} exd4 {[%emt 0:01:31]} 32. Qxd4 {[%emt 0:00:41]} Qa5 {[%emt 0:01:21]} 33. Qd7+ {[%emt 0:14:26]} Kh8 {[%emt 0:00:02]} 34. Qg4 {[%emt 0:00:52]} Qb6+ {[%emt 0:00:15]} 35. Qd4+ {[%emt 0:00:18]} Qxd4+ {[%emt 0:00:11]} 36. Nxd4 {[%emt 0:00:05]} Rf6 {[%emt 0:01:20]} 37. Ne6 {[%emt 0:01:43]} Rc8 {[%emt 0:00:29]} 38. Rf1 {[%emt 0:01:42]} Rxf1+ {[%emt 0:00:34]} 39. Kxf1 {[%emt 0:00:00]} Rc6 {[%emt 0:00:26]} 40. a4 {[%emt 0:00:07]} a5 {[%emt 0:00:54]} 41. Ke2 {[%emt 0:30:30]} Rd6 {[%emt 0:02:58]} 42. Kf3 {[%emt 0:00:00]} g5 {[%emt 0:00:59]} 43. Nc5 {[%emt 0:00:00]} Kg7 {[%emt 0:04:22]} 44. Nb7 {[%emt 0:00:00]} Rf6+ {[%emt 0:00:11]} 45. Kg3 {[%emt 0:00:00]} Rf5 {[%emt 0:01:07]} 46. Bb5 {[%emt 0:00:00]} h5 {[%emt 0:03:23]} 47. Nxa5 {[%emt 0:00:00]} Kf6 {[%emt 0:05:17]} 48. Nc4 {[%emt 0:00:00]} Rf1 {[%emt 0:05:13]} 49. a5 {[%emt 0:00:00]} Ke6 {[%emt 0:01:01]} 50. a6 {[%emt 0:00:00]} Rf7 {[%emt 0:01:13]} 51. Bc6 1-0

[Event "WSTCC-50 2024"]
[Site "Krakow"]
[Date "2024.07.07"]
[Round "6.20"]
[White "O`Dwyer, Fergal"]
[Black "Kayser, Pierrot"]
[Result "1-0"]
[ECO "C00"]
[WhiteElo "1935"]
[BlackElo "1764"]
[Annotator "NA RC"]
[PlyCount "61"]
[EventDate "2024.07.01"]
[EventType "team-tourn"]
[EventCountry "POL"]
[SourceTitle "playchess.com"]
[Source "ChessBase"]
[SourceQuality "1"]
[TimeControl "40/5400+30:1800+30"]

1. e4 {[%emt 0:00:33]} e6 {[%emt 0:00:30]} 2. d4 {[%emt 0:00:34]} c5 {[%emt 0:00:44]} 3. d5 {[%emt 0:05:47]} exd5 {[%emt 0:02:58]} 4. exd5 {[%emt 0:00:39]} d6 {[%emt 0:01:22]} 5. c4 {[%emt 0:05:10]} Nf6 {[%emt 0:03:53]} 6. Nf3 {[%emt 0:02:21]} Be7 {[%emt 0:00:58]} 7. Nc3 {[%emt 0:05:41]} Bf5 {[%emt 0:04:15]} 8. Bd3 {[%emt 0:03:19]} Bxd3 {[%emt 0:02:10]} 9. Qxd3 {[%emt 0:00:13]} Nbd7 {[%emt 0:00:23]} 10. O-O {[%emt 0:02:16]} O-O {[%emt 0:00:10]} 11. Re1 {[%emt 0:01:41]} Re8 {[%emt 0:05:31]} 12. h3 {[%emt 0:05:09]} Bf8 {[%emt 0:05:46]} 13. Bf4 {[%emt 0:02:46]} a6 {[%emt 0:00:32]} 14. Rxe8 {[%emt 0:10:50]} Nxe8 {[%emt 0:08:26]} 15. Re1 {[%emt 0:01:23]} Qf6 {[%emt 0:01:27]} 16. Qd2 {[%emt 0:06:46]} Nb6 {[%emt 0:03:57]} 17. b3 {[%emt 0:03:31]} Qf5 {[%emt 0:05:17]} 18. Ne4 {[%emt 0:06:29]} Rd8 {[%emt 0:03:50]} 19. Ng3 {[%emt 0:07:39]} Qd7 {[%emt 0:04:22]} 20. Qd3 {[%emt 0:04:23]} Be7 {[%emt 0:07:36]} 21. Bd2 {[%emt 0:01:37]} Nc8 {[%emt 0:03:40]} 22. Nf5 {[%emt 0:05:27]} Bf8 {[%emt 0:01:09]} 23. Ng5 {[%emt 0:02:48]} g6 {[%emt 0:01:09]} 24. Ng3 {[%emt 0:01:27]} Ng7 {[%emt 0:01:35]} 25. N5e4 {[%emt 0:01:20]} Be7 {[%emt 0:05:45]} 26. Bc3 {[%emt 0:00:40]} Nf5 {[%emt 0:01:59]} 27. Nf6+ {[%emt 0:01:30]} Bxf6 {[%emt 0:00:24]} 28. Bxf6 {[%emt 0:00:09]} Re8 {[%emt 0:11:21]} 29. Rxe8+ {[%emt 0:00:27]} Qxe8 {[%emt 0:00:03]} 30. Nxf5 {[%emt 0:00:14]} gxf5 {[%emt 0:01:00]} 31. Qg3+ {[%emt 0:00:19]} 1-0

[Event "WSTCC-50 2024"]
[Site "Krakow"]
[Date "2024.07.07"]
[Round "6.21"]
[White "Osiecki, Stanislaw"]
[Black "Marinello, Beatriz"]
[Result "1-0"]
[ECO "B12"]
[WhiteElo "1986"]
[BlackElo "2109"]
[Annotator "RC"]
[PlyCount "69"]
[EventDate "2024.07.01"]
[EventType "team-tourn"]
[EventCountry "POL"]
[SourceTitle "playchess.com"]
[Source "ChessBase"]
[SourceQuality "1"]
[TimeControl "40/5400+30:1800+30"]

1. e4 {[%emt 0:00:03]} c6 {[%emt 0:00:15]} 2. d4 {[%emt 0:00:08]} d5 {[%emt 0:00:08]} 3. e5 {[%emt 0:00:07]} c5 {[%emt 0:00:21]} 4. c3 {[%emt 0:00:07]} Nc6 {[%emt 0:00:27]} 5. h3 {[%emt 0:04:46]} e6 {[%emt 0:04:03]} 6. Nf3 {[%emt 0:02:30]} Qb6 {[%emt 0:04:08]} 7. Bd3 {[%emt 0:00:35]} Bd7 {[%emt 0:00:48]} 8. dxc5 {[%emt 0:00:16]} Bxc5 {[%emt 0:01:27]} 9. O-O {[%emt 0:00:08]} a5 {[%emt 0:03:31]} 10. Nbd2 {[%emt 0:00:24]} Qc7 {[%emt 0:03:20]} 11. Nb3 {[%emt 0:00:57]} Bb6 {[%emt 0:00:10]} 12. Bf4 {[%emt 0:01:29]} Nge7 {[%emt 0:01:44]} 13. Bg3 {[%emt 0:02:25]} Ng6 {[%emt 0:03:06]} 14. Qe2 {[%emt 0:00:48]} O-O {[%emt 0:01:49]} 15. h4 {[%emt 0:01:04]} h6 {[%emt 0:02:59]} 16. h5 {[%emt 0:01:00]} Nge7 {[%emt 0:00:24]} 17. Kh1 {[%emt 0:06:57]} a4 {[%emt 0:04:10]} 18. Nbd4 {[%emt 0:01:27]} Nxd4 {[%emt 0:00:08]} 19. cxd4 {[%emt 0:05:31]} Qb8 {[%emt 0:13:40]} 20. Rad1 {[%emt 0:06:26]} Qa7 {[%emt 0:00:45]} 21. Bf4 {[%emt 0:02:29]} Rfc8 {[%emt 0:07:00]} 22. g4 {[%emt 0:03:01]} Kf8 {[%emt 0:01:07]} 23. Qe3 {[%emt 0:04:29]} Ke8 {[%emt 0:06:55]} 24. g5 {[%emt 0:02:03]} hxg5 {[%emt 0:00:55]} 25. Bxg5 {[%emt 0:00:02]} Nf5 {[%emt 0:00:26]} 26. Bxf5 {[%emt 0:01:39]} exf5 {[%emt 0:00:02]} 27. Qa3 {[%emt 0:05:54]} Bd8 {[%emt 0:01:45]} 28. Bxd8 {[%emt 0:14:49]} Rxd8 {[%emt 0:04:08]} 29. Rg1 {[%emt 0:01:10]} Qa6 {[%emt 0:02:06]} 30. Rxg7 {[%emt 0:00:39]} Be6 {[%emt 0:00:31]} 31. Ng5 {[%emt 0:01:47]} Kd7 {[%emt 0:07:16]} 32. Nxf7 {[%emt 0:02:18]} Rg8 {[%emt 0:00:45]} 33. Rh7 {[%emt 0:07:14]} Qe2 {[%emt 0:03:50]} 34. Qd6+ {[%emt 0:00:43]} Ke8 {[%emt 0:00:02]} 35. Qxe6+ 1-0

[Event "WSTCC-50 2024"]
[Site "Krakow"]
[Date "2024.07.07"]
[Round "6.21"]
[White "Kirby, Peter J."]
[Black "Homer, Stephen J"]
[Result "1/2-1/2"]
[ECO "A55"]
[WhiteElo "1984"]
[BlackElo "2019"]
[Annotator "RC"]
[PlyCount "108"]
[EventDate "2024.07.01"]
[EventType "team-tourn"]
[EventCountry "POL"]
[SourceTitle "playchess.com"]
[Source "ChessBase"]
[SourceQuality "1"]
[TimeControl "40/5400+30:1800+30"]

1. Nf3 {[%emt 0:00:03]} Nf6 {[%emt 0:00:07]} 2. c4 {[%emt 0:00:05]} d6 {[%emt 0:00:06]} 3. d4 {[%emt 0:00:14]} Nbd7 {[%emt 0:00:05]} 4. Nc3 {[%emt 0:00:41]} e5 {[%emt 0:00:17]} 5. e4 {[%emt 0:00:15]} Be7 {[%emt 0:00:06]} 6. Be2 {[%emt 0:00:27]} O-O {[%emt 0:00:10]} 7. O-O {[%emt 0:00:22]} c6 {[%emt 0:01:03]} 8. Re1 {[%emt 0:03:32]} Re8 {[%emt 0:02:32]} 9. Bf1 {[%emt 0:01:05]} Bf8 {[%emt 0:00:30]} 10. d5 {[%emt 0:03:10]} a5 {[%emt 0:03:46]} 11. Bg5 {[%emt 0:08:09]} h6 {[%emt 0:02:47]} 12. Bh4 {[%emt 0:01:03]} Qc7 {[%emt 0:10:46]} 13. Nd2 {[%emt 0:01:23]} g6 {[%emt 0:01:38]} 14. b3 {[%emt 0:02:40]} Nh5 {[%emt 0:01:16]} 15. f3 {[%emt 0:05:06]} Nc5 {[%emt 0:03:13]} 16. Qc2 {[%emt 0:07:57]} Be7 {[%emt 0:17:14]} 17. Bf2 {[%emt 0:00:49]} Bg5 {[%emt 0:05:28]} 18. Rab1 {[%emt 0:02:47]} f5 {[%emt 0:01:34]} 19. a3 {[%emt 0:02:12]} Bxd2 {[%emt 0:07:23]} 20. Qxd2 {[%emt 0:00:04]} f4 {[%emt 0:00:06]} 21. b4 {[%emt 0:02:14]} axb4 {[%emt 0:05:36]} 22. axb4 {[%emt 0:00:13]} Na6 {[%emt 0:02:34]} 23. c5 {[%emt 0:03:56]} Rd8 {[%emt 0:02:40]} 24. Red1 {[%emt 0:07:39]} Nf6 {[%emt 0:08:26]} 25. dxc6 {[%emt 0:05:32]} bxc6 {[%emt 0:00:10]} 26. Bc4+ {[%emt 0:03:38]} Kh7 {[%emt 0:00:54]} 27. cxd6 {[%emt 0:01:26]} Qd7 {[%emt 0:01:49]} 28. b5 {[%emt 0:10:33]} Nb8 {[%emt 0:00:40]} 29. Bb6 {[%emt 0:05:43]} Rf8 {[%emt 0:02:53]} 30. Bc7 {[%emt 0:00:56]} Bb7 {[%emt 0:00:44]} 31. Ra1 {[%emt 0:02:11]} Rxa1 {[%emt 0:02:07]} 32. Rxa1 {[%emt 0:00:02]} cxb5 {[%emt 0:01:54]} 33. Bxb5 {[%emt 0:01:12]} Qc8 {[%emt 0:01:43]} 34. Rc1 {[%emt 0:05:34]} Nbd7 {[%emt 0:03:08]} 35. Nd5 {[%emt 0:01:53]} Bxd5 {[%emt 0:00:52]} 36. exd5 {[%emt 0:00:09]} Qa8 {[%emt 0:01:50]} 37. Bc6 {[%emt 0:00:26]} Qa3 {[%emt 0:00:51]} 38. Rc3 {[%emt 0:02:51]} Qa7+ {[%emt 0:01:04]} 39. Kf1 {[%emt 0:00:26]} e4 {[%emt 0:01:19]} 40. Qc1 {[%emt 0:00:40]} exf3 {[%emt 0:02:17]} 41. gxf3 {[%emt 0:31:03]} Ne5 {[%emt 0:30:13]} 42. Ra3 {[%emt 0:02:21]} Qd4 {[%emt 0:00:29]} 43. Qe1 {[%emt 0:03:43]} Nxc6 {[%emt 0:00:00]} 44. dxc6 {[%emt 0:00:00]} Re8 {[%emt 0:00:00]} 45. Qc1 {[%emt 0:00:00]} Nd5 {[%emt 0:00:00]} 46. d7 {[%emt 0:00:00]} Ne3+ {[%emt 0:00:00]} 47. Rxe3 {[%emt 0:00:00]} Rxe3 {[%emt 0:00:00]} 48. Qxe3 {[%emt 0:00:00]} Qd1+ {[%emt 0:00:00]} 49. Qe1 {[%emt 0:00:00]} Qxf3+ {[%emt 0:00:00]} 50. Qf2 {[%emt 0:00:00]} Qd1+ {[%emt 0:00:00]} 51. Qe1 {[%emt 0:00:00]} Qf3+ {[%emt 0:00:00]} 52. Qf2 {[%emt 0:00:00]} Qd1+ 53. Qe1 Qf3+ 54. Kg1 Qg4+ 1/2-1/2

[Event "WSTCC-50 2024"]
[Site "Krakow"]
[Date "2024.07.07"]
[Round "6.22"]
[White "Sagalchik, Olga"]
[Black "Sielicki, Tomasz"]
[Result "1-0"]
[ECO "D32"]
[WhiteElo "2128"]
[BlackElo "2017"]
[Annotator "RC"]
[PlyCount "63"]
[EventDate "2024.07.01"]
[EventType "team-tourn"]
[EventCountry "POL"]
[SourceTitle "playchess.com"]
[Source "ChessBase"]
[SourceQuality "1"]
[TimeControl "40/5400+30:1800+30"]

1. d4 {[%emt 0:00:06]} d5 {[%emt 0:00:12]} 2. c4 {[%emt 0:00:34]} e6 {[%emt 0:00:10]} 3. Nc3 {[%emt 0:00:41]} c5 {[%emt 0:00:13]} 4. cxd5 {[%emt 0:06:02]} exd5 {[%emt 0:00:07]} 5. Nf3 {[%emt 0:00:31]} Nc6 {[%emt 0:00:10]} 6. e3 {[%emt 0:05:29]} Nf6 {[%emt 0:01:08]} 7. Be2 {[%emt 0:03:34]} c4 {[%emt 0:07:03]} 8. O-O {[%emt 0:01:23]} Bb4 {[%emt 0:02:16]} 9. Bd2 {[%emt 0:04:20]} O-O {[%emt 0:01:16]} 10. Ne5 {[%emt 0:06:22]} Re8 {[%emt 0:26:56]} 11. f4 {[%emt 0:11:47]} Bxc3 {[%emt 0:03:05]} 12. Bxc3 {[%emt 0:05:17]} Ne4 {[%emt 0:00:49]} 13. Be1 {[%emt 0:00:28]} f6 {[%emt 0:08:03]} 14. Nxc6 {[%emt 0:10:37]} bxc6 {[%emt 0:00:08]} 15. b3 {[%emt 0:05:06]} cxb3 {[%emt 0:04:29]} 16. Qxb3 {[%emt 0:01:08]} Qb6 {[%emt 0:01:35]} 17. Rb1 {[%emt 0:03:48]} Rb8 {[%emt 0:04:18]} 18. Bd3 {[%emt 0:10:05]} Nd6 {[%emt 0:07:44]} 19. Qa3 {[%emt 0:01:18]} Nb5 {[%emt 0:01:52]} 20. Qc1 {[%emt 0:00:29]} Qa6 {[%emt 0:03:48]} 21. a4 {[%emt 0:01:04]} Qxa4 {[%emt 0:00:23]} 22. Qxc6 {[%emt 0:00:08]} Ba6 {[%emt 0:02:17]} 23. Qxd5+ {[%emt 0:00:17]} Kh8 {[%emt 0:00:13]} 24. Qf5 {[%emt 0:00:29]} g6 {[%emt 0:01:18]} 25. Qxf6+ {[%emt 0:00:07]} Kg8 {[%emt 0:00:02]} 26. Rb4 {[%emt 0:00:44]} Nc7 {[%emt 0:02:25]} 27. Rxa4 {[%emt 0:01:09]} Bxd3 {[%emt 0:00:37]} 28. Rxa7 {[%emt 0:03:24]} Re6 {[%emt 0:00:23]} 29. Qh4 {[%emt 0:00:08]} h5 {[%emt 0:02:53]} 30. Rxc7 {[%emt 0:00:08]} Bxf1 {[%emt 0:00:17]} 31. Kxf1 {[%emt 0:00:09]} Rxe3 {[%emt 0:01:59]} 32. Qf6 {[%emt 0:00:51]} 1-0

[Event "WSTCC-50 2024"]
[Site "Krakow"]
[Date "2024.07.07"]
[Round "6.22"]
[White "Rasalingam, Haran"]
[Black "Brookfield, Toby"]
[Result "1-0"]
[ECO "B23"]
[WhiteElo "1944"]
[BlackElo "1894"]
[Annotator "NA RC"]
[PlyCount "59"]
[EventDate "2024.07.01"]
[EventType "team-tourn"]
[EventCountry "POL"]
[SourceTitle "playchess.com"]
[Source "ChessBase"]
[SourceQuality "1"]
[TimeControl "40/5400+30:1800+30"]

1. e4 {[%emt 0:00:24]} c5 {[%emt 0:00:12]} 2. Nc3 {[%emt 0:00:27]} d6 {[%emt 0:00:34]} 3. d4 {[%emt 0:00:42]} cxd4 {[%emt 0:00:28]} 4. Qxd4 {[%emt 0:00:16]} a6 {[%emt 0:00:21]} 5. b3 {[%emt 0:00:26]} Nc6 {[%emt 0:00:21]} 6. Qd2 {[%emt 0:00:10]} Nf6 {[%emt 0:02:03]} 7. Bb2 {[%emt 0:00:14]} g6 {[%emt 0:00:53]} 8. O-O-O {[%emt 0:01:09]} Bg7 {[%emt 0:00:23]} 9. f3 {[%emt 0:00:21]} O-O {[%emt 0:01:57]} 10. Nge2 {[%emt 0:01:02]} Bd7 {[%emt 0:05:27]} 11. h4 {[%emt 0:05:36]} h5 {[%emt 0:05:24]} 12. Nd5 {[%emt 0:05:45]} Nxd5 {[%emt 0:03:19]} 13. Bxg7 {[%emt 0:00:11]} Kxg7 {[%emt 0:00:09]} 14. exd5 {[%emt 0:00:10]} Ne5 {[%emt 0:01:26]} 15. Nd4 {[%emt 0:12:12]} Rc8 {[%emt 0:03:13]} 16. g4 {[%emt 0:03:11]} hxg4 {[%emt 0:01:43]} 17. f4 {[%emt 0:02:30]} Nf3 {[%emt 0:02:44]} 18. Nxf3 {[%emt 0:00:36]} gxf3 {[%emt 0:00:12]} 19. h5 {[%emt 0:00:32]} Bf5 {[%emt 0:08:27]} 20. Bd3 {[%emt 0:07:30]} e6 {[%emt 0:08:36]} 21. Kb1 {[%emt 0:04:18]} Qf6 {[%emt 0:04:28]} 22. dxe6 {[%emt 0:13:02]} Bxe6 {[%emt 0:07:14]} 23. hxg6 {[%emt 0:10:09]} fxg6 {[%emt 0:05:51]} 24. f5 {[%emt 0:02:18]} Bxf5 {[%emt 0:01:53]} 25. Bxf5 {[%emt 0:00:27]} Qxf5 {[%emt 0:03:35]} 26. Qh6+ {[%emt 0:00:28]} Kf6 {[%emt 0:00:25]} 27. Rxd6+ {[%emt 0:08:52]} Ke7 {[%emt 0:01:42]} 28. Rd2 {[%emt 0:03:09]} Rh8 {[%emt 0:05:29]} 29. Qg7+ {[%emt 0:00:41]} Ke6 {[%emt 0:01:49]} 30. Re1+ {[%emt 0:00:13]} 1-0

[Event "WSTCC-50 2024"]
[Site "Krakow"]
[Date "2024.07.07"]
[Round "6.23"]
[White "Flis, Pawel"]
[Black "Tsodikova, Natalia"]
[Result "1/2-1/2"]
[ECO "C50"]
[WhiteElo "1980"]
[BlackElo "2019"]
[Annotator "RC"]
[PlyCount "104"]
[EventDate "2024.07.01"]
[EventType "team-tourn"]
[EventCountry "POL"]
[SourceTitle "playchess.com"]
[Source "ChessBase"]
[SourceQuality "1"]
[TimeControl "40/5400+30:1800+30"]

1. e4 {[%emt 0:00:04]} e5 {[%emt 0:00:07]} 2. Nf3 {[%emt 0:00:04]} Nc6 {[%emt 0:00:09]} 3. Bc4 {[%emt 0:00:05]} Bc5 {[%emt 0:00:10]} 4. d3 {[%emt 0:00:17]} Nf6 {[%emt 0:00:13]} 5. Nbd2 {[%emt 0:00:12]} O-O {[%emt 0:00:27]} 6. h3 {[%emt 0:00:14]} d5 {[%emt 0:01:14]} 7. Bb3 {[%emt 0:04:40]} Re8 {[%emt 0:12:05]} 8. Qe2 {[%emt 0:00:13]} a5 {[%emt 0:04:15]} 9. c3 {[%emt 0:02:25]} h6 {[%emt 0:01:19]} 10. Nf1 {[%emt 0:00:22]} Be6 {[%emt 0:02:23]} 11. Ng3 {[%emt 0:01:44]} Bb6 {[%emt 0:03:44]} 12. Ba4 {[%emt 0:10:49]} Qd6 {[%emt 0:07:59]} 13. O-O {[%emt 0:15:59]} Rad8 {[%emt 0:03:30]} 14. Rd1 {[%emt 0:01:41]} Bd7 {[%emt 0:02:42]} 15. Bb3 {[%emt 0:07:07]} d4 {[%emt 0:04:58]} 16. c4 {[%emt 0:04:02]} Ne7 {[%emt 0:03:25]} 17. Nh4 {[%emt 0:00:21]} c5 {[%emt 0:00:46]} 18. Rf1 {[%emt 0:01:52]} g5 {[%emt 0:03:19]} 19. Nf3 {[%emt 0:05:47]} Ng6 {[%emt 0:01:08]} 20. Nh2 {[%emt 0:03:52]} Nf4 {[%emt 0:02:01]} 21. Bxf4 {[%emt 0:13:09]} exf4 {[%emt 0:00:15]} 22. Nh5 {[%emt 0:00:47]} Nh7 {[%emt 0:01:40]} 23. Qd2 {[%emt 0:03:40]} Qg6 {[%emt 0:03:58]} 24. Bd1 {[%emt 0:05:34]} f5 {[%emt 0:04:33]} 25. exf5 {[%emt 0:06:41]} Bxf5 {[%emt 0:00:09]} 26. Bf3 {[%emt 0:06:15]} Bxd3 {[%emt 0:03:37]} 27. Rfe1 {[%emt 0:00:06]} Bxc4 {[%emt 0:02:44]} 28. b3 {[%emt 0:00:16]} Bf7 {[%emt 0:02:02]} 29. g4 {[%emt 0:01:40]} Nf6 {[%emt 0:09:45]} 30. Nxf6+ {[%emt 0:00:20]} Qxf6 {[%emt 0:00:02]} 31. Bxb7 {[%emt 0:00:12]} Re7 {[%emt 0:02:31]} 32. Be4 {[%emt 0:01:50]} Rde8 {[%emt 0:02:20]} 33. Bf5 {[%emt 0:00:20]} Bg6 {[%emt 0:01:12]} 34. Bxg6 {[%emt 0:01:37]} Qxg6 {[%emt 0:00:02]} 35. Nf3 {[%emt 0:00:35]} Bc7 {[%emt 0:03:21]} 36. Rac1 {[%emt 0:00:25]} Qd6 {[%emt 0:01:49]} 37. Qd3 {[%emt 0:00:49]} Kg7 {[%emt 0:01:39]} 38. Rxe7+ {[%emt 0:01:08]} Rxe7 {[%emt 0:00:30]} 39. Re1 {[%emt 0:01:03]} Rxe1+ {[%emt 0:02:57]} 40. Nxe1 {[%emt 0:00:06]} Qg6 {[%emt 0:01:30]} 41. Kg2 {[%emt 0:31:32]} Qxd3 {[%emt 0:31:10]} 42. Nxd3 {[%emt 0:00:02]} Bd6 {[%emt 0:00:37]} 43. Kf3 {[%emt 0:00:14]} a4 {[%emt 0:02:39]} 44. Ke4 {[%emt 0:00:19]} axb3 {[%emt 0:00:23]} 45. axb3 {[%emt 0:00:02]} Kf6 {[%emt 0:00:17]} 46. Kd5 {[%emt 0:00:40]} Ke7 {[%emt 0:02:13]} 47. Ne1 {[%emt 0:00:00]} Kd7 {[%emt 0:00:00]} 48. Nd3 {[%emt 0:00:00]} Kc7 {[%emt 0:00:00]} 49. Ne1 {[%emt 0:00:00]} Bf8 {[%emt 0:00:00]} 50. Nd3 {[%emt 0:00:00]} Kb6 {[%emt 0:00:00]} 51. Kc4 {[%emt 0:00:00]} Kc6 {[%emt 0:00:00]} 52. f3 {[%emt 0:00:00]} Be7 {[%emt 0:00:00]} 1/2-1/2

[Event "WSTCC-50 2024"]
[Site "Krakow"]
[Date "2024.07.07"]
[Round "6.23"]
[White "Morgan, Jamie"]
[Black "De Winter, Kevin"]
[Result "0-1"]
[ECO "B01"]
[WhiteElo "1843"]
[BlackElo "1803"]
[Annotator "NA RC"]
[PlyCount "126"]
[EventDate "2024.07.01"]
[EventType "team-tourn"]
[EventCountry "POL"]
[SourceTitle "playchess.com"]
[Source "ChessBase"]
[SourceQuality "1"]
[TimeControl "40/5400+30:1800+30"]

1. e4 {[%emt 0:00:06]} d5 {[%emt 0:00:20]} 2. exd5 {[%emt 0:00:07]} Nf6 {[%emt 0:00:08]} 3. Bb5+ {[%emt 0:00:44]} Bd7 {[%emt 0:00:41]} 4. Be2 {[%emt 0:00:12]} Bf5 {[%emt 0:00:16]} 5. Nf3 {[%emt 0:01:09]} Nxd5 {[%emt 0:00:08]} 6. d4 {[%emt 0:02:39]} e6 {[%emt 0:00:04]} 7. O-O {[%emt 0:01:34]} Be7 {[%emt 0:02:43]} 8. a3 {[%emt 0:04:44]} O-O {[%emt 0:03:27]} 9. c4 {[%emt 0:01:30]} Nb6 {[%emt 0:01:17]} 10. Nc3 {[%emt 0:01:12]} Nc6 {[%emt 0:01:33]} 11. Bf4 {[%emt 0:25:50]} Bf6 {[%emt 0:19:44]} 12. Be5 {[%emt 0:04:40]} Nxe5 {[%emt 0:10:25]} 13. dxe5 {[%emt 0:10:04]} Be7 {[%emt 0:00:16]} 14. Nd4 {[%emt 0:00:32]} Bg6 {[%emt 0:01:16]} 15. Rc1 {[%emt 0:05:09]} a6 {[%emt 0:11:42]} 16. Kh1 {[%emt 0:16:34]} c5 {[%emt 0:06:31]} 17. Nb3 {[%emt 0:03:21]} Qc7 {[%emt 0:09:57]} 18. f4 {[%emt 0:00:52]} Rad8 {[%emt 0:03:00]} 19. Qe1 {[%emt 0:01:09]} Bd3 {[%emt 0:06:41]} 20. Nd2 {[%emt 0:00:40]} Rd7 {[%emt 0:02:55]} 21. Rf3 {[%emt 0:03:02]} Bxe2 {[%emt 0:02:29]} 22. Qxe2 {[%emt 0:00:14]} Rd4 {[%emt 0:02:32]} 23. Nce4 {[%emt 0:00:53]} Rfd8 {[%emt 0:01:50]} 24. Rh3 {[%emt 0:01:17]} g6 {[%emt 0:01:19]} 25. Nb3 {[%emt 0:03:20]} R4d7 {[%emt 0:01:45]} 26. Kg1 {[%emt 0:05:22]} Rd4 {[%emt 0:01:08]} 27. Nxd4 {[%emt 0:00:00]} cxd4 {[%emt 0:00:00]} 28. Qg4 {[%emt 0:02:35]} Nd5 {[%emt 0:00:18]} 29. Nf6+ {[%emt 0:03:25]} Bxf6 {[%emt 0:01:32]} 30. exf6 {[%emt 0:00:29]} Qxf4 {[%emt 0:00:16]} 31. Qd1 {[%emt 0:00:47]} Ne3 {[%emt 0:01:22]} 32. Rf3 {[%emt 0:00:00]} Nxd1 {[%emt 0:01:16]} 33. Rxf4 {[%emt 0:00:05]} Nxb2 {[%emt 0:00:31]} 34. Rf2 {[%emt 0:01:49]} Nd3 {[%emt 0:00:12]} 35. Rff1 {[%emt 0:00:47]} Nxc1 {[%emt 0:00:07]} 36. Rxc1 {[%emt 0:00:04]} Kf8 {[%emt 0:02:42]} 37. Kf2 {[%emt 0:00:11]} e5 {[%emt 0:00:19]} 38. Kf3 {[%emt 0:00:23]} Re8 {[%emt 0:02:08]} 39. Ke4 {[%emt 0:00:12]} Re6 {[%emt 0:01:12]} 40. Rf1 {[%emt 0:00:23]} Ke8 {[%emt 0:00:45]} 41. g4 {[%emt 0:09:34]} Kd7 {[%emt 0:05:26]} 42. g5 {[%emt 0:00:31]} Kd6 {[%emt 0:03:03]} 43. Rb1 {[%emt 0:00:57]} Kc6 {[%emt 0:00:41]} 44. a4 {[%emt 0:03:03]} Kc7 {[%emt 0:02:15]} 45. Rb3 {[%emt 0:06:10]} Re8 {[%emt 0:03:14]} 46. c5 {[%emt 0:02:08]} Rd8 {[%emt 0:03:35]} 47. Rd3 {[%emt 0:02:25]} Kc6 {[%emt 0:01:26]} 48. Kf3 {[%emt 0:06:21]} Kxc5 {[%emt 0:00:34]} 49. Ke4 {[%emt 0:00:23]} Kc4 {[%emt 0:01:37]} 50. a5 {[%emt 0:03:08]} Rd7 {[%emt 0:02:01]} 51. Rd1 {[%emt 0:01:54]} Kb5 {[%emt 0:01:25]} 52. Kd3 {[%emt 0:00:38]} Kxa5 {[%emt 0:00:52]} 53. Re1 {[%emt 0:00:05]} Rd5 {[%emt 0:01:57]} 54. Re4 {[%emt 0:00:52]} b5 {[%emt 0:00:52]} 55. Rh4 {[%emt 0:00:29]} Rd7 {[%emt 0:00:48]} 56. Re4 {[%emt 0:00:21]} Rd5 {[%emt 0:00:24]} 57. Rh4 {[%emt 0:00:04]} b4 {[%emt 0:00:51]} 58. Rxh7 {[%emt 0:00:11]} Rd7 {[%emt 0:00:09]} 59. Rh8 {[%emt 0:00:24]} b3 {[%emt 0:01:05]} 60. Rb8 {[%emt 0:02:05]} Ka4 {[%emt 0:00:47]} 61. Re8 {[%emt 0:00:37]} Rc7 {[%emt 0:01:40]} 62. Rxe5 {[%emt 0:00:19]} b2 {[%emt 0:00:33]} 63. Re1 {[%emt 0:00:20]} Rc1 {[%emt 0:00:19]} 0-1